Cogmind - Beta 16.1 @@@ ROGUE MODE // 2026.02.24 @ 06:47:00 Player: Rocket Result: Destroyed by G-73 Enforcer with Phase Gun Performance ------------- Evolutions (8) 4000 Regions Visited (28) 5600 Robots Destroyed (207) 1035 Value Destroyed (9129) 9129 Prototype IDs (36) 720 Alien Tech Used (2) 400 Bonus (13592) 13592 TOTAL SCORE: 34476 Bonus ------- High Alert Combat Kills 277 Follower Combat Kills 4288 Entered Garrisons 200 Met Imprinter 300 Was Imprinted 300 Met Warlord at Base 500 MAIN.C Attacked Warlord 500 Warlord Defense Kills 3286 Built Enhanced Grunts 300 Met R17 at Cetus 500 Found Hidden Lab 3000 Pursued by Intercept 500 Friendly Fire -359 Cogmind --------- Core Integrity 0/1450 Matter 273/300 Energy 78/100 System Corruption 2% Temperature Cool (1) Movement Flying (40) Location -2/Garrison Parts ------- > --- POWER (2) -------- (None) > --- PROPULSION (6) --- Gyrokinetic Inverter Field Propulsion Array > --- UTILITY (13) ----- Medium Regenerative Plating Deep Network Scanner System Shield > --- WEAPON (2) ------- Advanced Remote Datajack > --- INVENTORY (5) ---- Particle Reactor Peak State ------------ > --- POWER ------------ Neutrino Core Quantum Reactor > --- PROPULSION ------- Armored Heavy Treads Centrium Heavy Treads Centrium Heavy Treads > --- UTILITY ---------- Cargo Storage Unit Spectral Analyzer Experimental Signal Interpreter Long-range Terrain Scanner Experimental Targeting Computer Experimental Targeting Computer Experimental Targeting Computer Experimental Targeting Computer Experimental Targeting Computer Precision Matter Filter > --- WEAPON ----------- Heavy Autocannon > --- INVENTORY -------- Heavy Antimatter Reactor Medium Storage Unit IFF Parser Makeshift Terrain Scanner Transdimensional Reconstructor Integrated Dissipator Arc Thrower Vortex Rail Micro-nuke Launcher Fusion Bomb Launcher Phasing Sabre Vortex Lance Vortex Lance [Rating: 156] Favorites ----------- Power Quantum Reactor Engine Light Deuterium Engine Power Core Neutrino Core Reactor Quantum Reactor Propulsion Armored Huge Wheel Treads Centrium Heavy Treads Leg Improved Titanium Leg Wheel Armored Huge Wheel Hover Unit Gyrokinetic Inverter Flight Unit Field Propulsion Array Utility Cargo Storage Unit Device Improved Terrain Scanner Storage Cargo Storage Unit Processor Experimental Signal Interpreter Hackware Experimental Hacking Suite Protection Makeshift Light Armor Plating Weapon Phasing Sabre Energy Gun Small Laser Energy Cannon Improved EM Pulse Cannon Ballistic Gun Flak Gun Ballistic Cannon Mass Driver Launcher Rocket Launcher Special Weapon Remote Datajack Slashing Weapon Phasing Sabre Piercing Weapon Vortex Lance Build | -11 -10 -10 -10 -9 -8 -7 -7 -7 -7 -6 -6 -6 -6 -5 -5 -5 -5 -4 -4 -4 -4 -4 -3 -3 -3 -3 -2 -2 ------- Run | Yrd Mat Min Exi Min Mat Fac Low Low Zio Pro Fac Ext Cet Fac Upp Upp Zhi Pro Fac Upp Upp War Pro Res Arm Lab Res Gar Slots Evolved 16 | . . . . . 4 2 . . . . 2 . . 2 . . . . 2 . . . . 2 . . 2 . Power 1 | . . . . . . . . . . . . . . . . . . . . . . . . 1 . . . . Propulsion 4 | . . . . . 2 . . . . . . . . . . . . . 2 . . . . . . . . . Utility 11 | . . . . . 2 2 . . . . 2 . . 2 . . . . . . . . . 1 . . 2 . Weapon . | . . . . . . . . . . . . . . . . . . . . . . . . . . . . . Parts Attached 171 | 6 8 2 . 4 18 21 3 4 3 6 4 7 8 3 1 5 2 . 11 5 4 5 11 5 13 1 10 1 Power 21 | 1 2 . . . 2 2 1 2 . . 2 . 2 . . . 1 . . 1 1 . . 2 . . 2 . Engine 12 | 1 2 . . . 2 1 1 2 . . 1 . 1 . . . . . . . . . . . . . 1 . Core 3 | . . . . . . 1 . . . . 1 . . . . . . . . . . . . 1 . . . . Reactor 6 | . . . . . . . . . . . . . 1 . . . 1 . . 1 1 . . 1 . . 1 . Propulsion 37 | 2 1 . . 2 7 5 . . . 1 1 1 3 1 . . . . 3 . 2 . 3 1 1 . 3 . Treads 14 | . . . . 2 3 1 . . . . . . 2 . . . . . . . 2 . 3 . 1 . . . Leg 5 | . . . . . 4 1 . . . . . . . . . . . . . . . . . . . . . . Wheel 15 | 2 1 . . . . 3 . . . 1 1 1 1 1 . . . . 3 . . . . 1 . . . . Hover 2 | . . . . . . . . . . . . . . . . . . . . . . . . . . . 2 . Flight 1 | . . . . . . . . . . . . . . . . . . . . . . . . . . . 1 . Utility 73 | 1 2 2 . . 6 10 2 . 3 3 1 3 2 1 1 3 1 . 6 . . 1 5 2 12 1 5 . Device 19 | . 1 1 . . . 3 . . . 2 1 1 . . . . . . 1 . . . 2 1 4 . 2 . Storage 7 | 1 1 . . . 1 2 . . . . . . . . . . . . . . . . . 1 . 1 . . Processor 15 | . . 1 . . 2 1 . . 2 . . . . . . . . . . . . . 1 . 8 . . . Hackware 10 | . . . . . 1 1 . . 1 . . . . 1 . . . . 2 . . . 2 . . . 2 . Protection 22 | . . . . . 2 3 2 . . 1 . 2 2 . 1 3 1 . 3 . . 1 . . . . 1 . Artifact . | . . . . . . . . . . . . . . . . . . . . . . . . . . . . . Weapon 40 | 2 3 . . 2 3 4 . 2 . 2 . 3 1 1 . 2 . . 2 4 1 4 3 . . . . 1 Energy Gun 6 | 2 1 . . 1 . . . . . . . . . . . . . . . . . 1 1 . . . . . Energy Cannon 7 | . . . . . 2 1 . 1 . 1 . . 1 . . . . . . 1 . . . . . . . . Ballistic Gun 1 | . . . . . . 1 . . . . . . . . . . . . . . . . . . . . . . Ballistic Cannon 4 | . . . . . . . . . . 1 . . . 1 . 1 . . . . . . 1 . . . . . Launcher 6 | . 1 . . 1 1 . . . . . . . . . . . . . 1 1 . 1 . . . . . . Special Weapon 5 | . . . . . . . . 1 . . . . . . . 1 . . 1 . . 1 . . . . . 1 Impact Weapon . | . . . . . . . . . . . . . . . . . . . . . . . . . . . . . Slashing Weapon 9 | . 1 . . . . 2 . . . . . 3 . . . . . . . 2 1 . . . . . . . Piercing Weapon 2 | . . . . . . . . . . . . . . . . . . . . . . 1 1 . . . . . Special Melee Weapon . | . . . . . . . . . . . . . . . . . . . . . . . . . . . . . Unidentified Prototypes 22 | . . . . . 1 . . . 3 . 1 1 2 . . . 2 . . . . 3 1 . 6 . 2 . Corrupted Parts 2 | . . . . . . . . . . . . . 2 . . . . . . . . . . . . . . . System Corruption 10 | . . . . . . . . . . . . . 10 . . . . . . . . . . . . . . . Parts Lost 59 | . 4 1 . . 1 1 . 5 . 3 2 . 3 . . 2 . 1 2 1 1 3 7 5 3 9 3 2 Power 11 | . 2 . . . . . . 2 . 1 . . 1 . . . . . . . . . . 1 1 1 1 1 Propulsion 11 | . 1 . . . . . . . . . 1 . . . . . . . . 1 1 . 2 2 1 1 1 . Utility 27 | . 1 . . . . 1 . 1 . 1 1 . 1 . . 2 . 1 2 . . 2 5 1 . 6 1 1 Weapon 10 | . . 1 . . 1 . . 2 . 1 . . 1 . . . . . . . . 1 . 1 1 1 . . Highest Loss Streak 4 | . 2 1 . . 1 1 . 3 . 2 1 . 3 . . 2 . 1 1 1 1 3 4 2 3 4 2 2 To Critical Strikes . | . . . . . . . . . . . . . . . . . . . . . . . . . . . . . Average Backups 21 | 3 10 14 13 14 14 17 25 23 25 24 25 26 26 24 24 25 25 25 25 23 22 25 17 12 11 7 3 1 Power 1 | . 1 . . . . 1 3 2 2 1 2 2 1 1 1 1 1 1 1 1 2 3 3 2 1 . . 1 Propulsion 3 | 1 2 2 2 2 3 3 4 5 4 4 3 3 4 4 4 4 4 4 4 4 3 4 3 2 . . . . Utility 10 | . 3 7 8 8 6 8 10 10 13 14 13 14 16 15 14 13 13 14 13 10 10 10 2 1 2 2 1 . Weapon 4 | . 2 3 3 3 3 3 5 3 4 4 5 5 4 4 4 4 3 2 2 5 3 5 6 5 6 3 . . Tool/Special . | . . . . . . . . . . . . . . . . . . . . . . . . . . . . . Unused Backups 53 | . 1 . . 2 12 8 . . 2 1 2 3 5 . . 1 3 . 3 1 . 4 . . . 4 . 1 Power 3 | . . . . . . . . . . . . . 1 . . . 1 . . . . . . . . . . 1 Propulsion 10 | . . . . . 2 3 . . 1 . . 1 2 . . 1 . . . . . . . . . . . . Utility 26 | . 1 . . 2 8 4 . . 1 1 2 . 2 . . . . . 2 1 . 2 . . . . . . Weapon 13 | . . . . . 2 1 . . . . . 2 . . . . 2 . 1 . . 2 . . . 3 . . Tool/Special 1 | . . . . . . . . . . . . . . . . . . . . . . . . . . 1 . . Average Slot Usage (%) 75 | . 87 71 100 100 96 87 75 71 70 76 79 79 73 75 75 78 80 82 78 69 73 77 72 72 67 37 9 29 Engine 3 | . 7 3 14 14 9 5 7 6 7 7 5 6 4 . . . . . . . . . . . . . . . Reactor 2 | . . . . . . . . . . . . . . 5 5 5 5 5 5 5 5 5 5 3 4 2 . 2 Treads 2 | . . . . 23 4 . . . . . . . 5 . . . . . . . 4 10 19 15 9 3 . . Leg 1 | . . . . . 29 9 . . . . . . . . . . . . . . . . . . . . . . Wheel 11 | . 26 17 28 4 . 10 15 15 15 15 12 13 6 10 11 11 11 11 16 15 11 10 1 . 2 . . . Device 8 | . 10 6 . . . 13 7 7 7 5 12 13 5 10 15 13 11 7 9 5 5 5 7 8 7 3 1 2 Storage 6 | . 14 14 14 14 9 7 7 7 7 7 6 6 6 5 5 5 5 5 5 5 5 5 5 6 5 2 . . Processor 10 | . . . 14 14 12 7 7 7 12 15 13 13 13 11 11 11 11 11 10 10 10 10 9 9 25 19 . . Hackware 5 | . . . . . 4 3 . . 4 7 6 6 6 8 5 5 5 5 9 10 10 9 13 14 3 . 2 8 Protection 7 | . . . . . 7 11 14 14 5 1 5 5 7 7 6 11 17 20 10 9 10 9 4 . . . . 3 Energy Gun 1 | . 26 21 14 21 . . . . . . . . . . . . 3 . . . . 1 1 2 . . . . Energy Cannon 2 | . . . . . 8 5 7 4 . 3 . 1 5 2 5 2 . . . 3 . . . . . . . . Ballistic Cannon 1 | . . . . . . . . . . 3 6 2 . 1 . 2 2 4 2 1 4 . 2 . 2 . . . Launcher 1 | . . 6 14 7 8 2 . 3 4 . . . . . . . . . . . . . . . . . . . Slashing Weapon 3 | . . . . . . 5 6 2 4 6 5 5 . 2 5 4 2 2 4 1 3 4 . 2 . . . . Peak Build Rating 156 | 6 8 10 9 10 39 48 51 51 65 68 76 80 106 111 106 108 106 106 114 113 124 132 135 132 156 112 67 59 Average Rating 78 | 5 6 6 8 8 33 45 50 46 56 66 74 77 91 100 100 103 100 104 110 112 116 125 123 122 124 65 21 53 On Entrance 68 | . 6 5 8 9 10 39 47 51 49 64 67 76 79 104 101 100 105 106 104 111 113 124 115 117 109 112 5 46 Avg Prop Armor Cover (%) 10 | . . . . . 23 8 . . . . . . 8 . . . . . . . 8 13 13 . 1 19 5 1 Naked Turns 360 | . . . . . . . . . . . . . . . . . . . . . . . . . . 148 212 . Heaviest Build 355 | 11 28 28 27 29 46 171 178 174 168 172 165 171 193 195 196 192 190 190 206 204 200 201 210 334 355 171 17 14 Greatest Support 240 | 20 20 20 20 40 82 80 56 56 56 56 56 56 160 56 56 56 56 56 84 84 72 44 215 240 220 140 15 15 Greatest Overweight (x) 9 | . 2 2 1 1 3 3 3 3 2 3 2 3 6 3 3 3 3 3 3 3 4 4 7 2 2 9 1 . Average Overweight (x) 1 | . . 1 1 . . . 3 2 2 2 2 2 5 3 3 3 3 3 2 2 3 4 . . . . . . Largest Inventory Capacity 30 | 8 15 15 15 15 15 30 30 30 30 30 30 30 30 30 30 30 30 30 30 30 30 30 30 30 30 30 5 5 Average Capacity 26 | 7 12 15 15 15 15 19 30 30 30 30 30 30 30 30 30 30 30 30 30 30 30 30 30 30 30 13 5 5 Most Carried 30 | 4 15 15 14 15 15 24 30 30 30 30 30 30 30 29 30 30 30 30 30 30 30 30 29 18 13 10 5 3 Average Carried 24 | 3 10 14 13 14 14 17 29 27 29 28 29 29 29 28 28 29 29 29 29 29 26 29 19 14 11 7 3 1 Final Capacity 30 | 8 15 15 15 15 15 30 30 30 30 30 30 30 30 30 30 30 30 30 30 30 30 30 30 30 30 5 5 5 Final Carried 30 | 4 15 13 14 15 15 23 30 26 30 29 30 30 30 29 29 30 30 29 30 29 30 26 18 12 10 5 3 1 Class Distribution -------------------- 25% | Hauler-Mutant 22% | Hacker-Mutant 16% | Mutant 14% | Commander-Mutant 9% | Commander-Assassin 5% | Assassin 4% | Hauler-Assassin Dominant Class ---------------- Mutant | -10/Materials Mutant | -10/Mines Mutant | -10/Exiles Mutant | -9/Mines Mutant | -8/Materials Assassin | -7/Factory Hauler-Mutant | -7/Lower Caves Hauler-Mutant | -7/Lower Caves Hauler-Mutant | -7/Zion Hauler-Mutant | -6/Proximity Caves Hauler-Assassin | -6/Factory Hauler-Mutant | -6/Extension Commander-Mutant | -6/Cetus Commander-Assassin | -5/Factory Commander-Assassin | -5/Upper Caves Commander-Mutant | -5/Upper Caves Commander-Mutant | -5/Zhirov Commander-Mutant | -4/Proximity Caves Hacker-Assassin | -4/Factory Hacker-Mutant | -4/Upper Caves Hacker-Mutant | -4/Upper Caves Hacker-Mutant | -4/Warlord Hacker-Mutant | -3/Proximity Caves Hacker-Mutant | -3/Research Hauler-Mutant | -3/Armory Mutant | -3/Lab Mutant | -2/Research Hacker-Mutant | -2/Garrison Resources | -11 -10 -10 -10 -9 -8 -7 -7 -7 -7 -6 -6 -6 -6 -5 -5 -5 -5 -4 -4 -4 -4 -4 -3 -3 -3 -3 -2 -2 ----------- Run | Yrd Mat Min Exi Min Mat Fac Low Low Zio Pro Fac Ext Cet Fac Upp Upp Zhi Pro Fac Upp Upp War Pro Res Arm Lab Res Gar Matter Collected 6352 | 196 159 25 . 89 204 522 189 372 76 377 102 597 145 . 177 249 50 324 228 485 234 200 850 33 . 27 442 . Remotely 72 | . . . . . . . . . . . . . . . . . . . . . . . . . . . 72 . Salvage Created 7244 | . 316 186 . 117 506 749 162 353 . 247 190 654 174 . 104 344 . 230 501 460 23 321 922 222 . 27 436 . Parts 318 | . 22 8 . 16 24 54 3 15 . 6 14 33 7 . 1 13 . 4 24 11 . 5 29 6 . . 23 . Haulers Intercepted . | . . . . . . . . . . . . . . . . . . . . . . . . . . . . . Recyclers Shooed 5 | . . . . 1 2 . . . . . . 1 . . . . . . . . . . . . . . 1 . Parts Field Recycled 32 | . . . . . . 24 . . . . . . . . . . . . 2 6 . . . . . . . . Retrieved Matter 460 | . . . . . . 335 . . . . . . . . . . . . 13 112 . . . . . . . . Parts Self-Destructed 147 | . . . . . . . 3 12 . 7 . . . . 5 41 . 22 . 17 9 . 31 . . . . . Prevented 14 | . . . . . . . . 2 . 7 . . . . 3 . . . . 2 . . . . . . . . Parts Restored . | . . . . . . . . . . . . . . . . . . . . . . . . . . . . . Kills | -11 -10 -10 -10 -9 -8 -7 -7 -7 -7 -6 -6 -6 -6 -5 -5 -5 -5 -4 -4 -4 -4 -4 -3 -3 -3 -3 -2 -2 ------- Run | Yrd Mat Min Exi Min Mat Fac Low Low Zio Pro Fac Ext Cet Fac Upp Upp Zhi Pro Fac Upp Upp War Pro Res Arm Lab Res Gar Combat Hostiles Destroyed 170 | . 9 4 . 10 11 11 7 15 . 5 4 6 3 . 2 7 . 4 9 7 . 25 20 8 . 1 2 . Melee 35 | . 1 . . . . 5 . 2 . . 1 3 . . . 3 . 2 3 2 . . 7 3 . 1 2 . Guns 18 | . 6 3 . 2 . . . . . . . . . . . . . . . . . 2 3 2 . . . . Cannons 35 | . . . . . 5 1 1 2 . 3 1 2 1 . 1 4 . 2 1 1 . . 10 . . . . . AOE 77 | . 2 1 . 8 5 4 6 11 . 2 2 1 . . . . . . 5 4 . 23 . 3 . . . . Classes Destroyed 21 | . 3 1 . 1 3 5 . 1 . . . 1 . . . . . . . 1 . 3 1 . . . 1 . Worker 10 | . . . . . . 7 . . . . . . . . . . . . 1 . . . . . . . 2 . Builder 9 | . . . . . . 2 . . . . 2 2 . . . . . . 3 . . . . . . . . . Tunneler 2 | . . . . . . 1 . . . . . . . . . . . . 1 . . . . . . . . . Recycler 5 | . . . . . 1 . . . . . . 1 . . . . . . 1 . . . . . . . 2 . Mechanic 3 | . . 1 . . . 1 . . . . . . . . . . . . . . . 1 . . . . . . Operator 1 | . . . . . . . . . . . . . . . . . . . . . . . . . . . 1 . Drone 2 | . . . . . . . . . . . . . . . . . . . . . . . 2 . . . . . Watcher 4 | . 2 . . . 1 1 . . . . . . . . . . . . . . . . . . . . . . Swarmer 39 | . 3 . . 8 2 4 . 5 . . . 1 . . . 3 . 1 3 . . . 6 3 . . . . Saboteur 1 | . . . . . . . . . . . . . . . . . . . . . . 1 . . . . . . Grunt 61 | . 6 4 . 1 5 . 6 4 . 3 3 . . . 2 1 . 2 2 5 . 8 5 4 . . . . Brawler 14 | . . . . 1 . . . 2 . 1 . . . . . . . 1 . . . 6 3 . . . . . Duelist 9 | . . . . . 1 . 1 2 . . . . . . . . . . . 2 . 2 1 . . . . . Protector 4 | . . . . . . . . 1 . . . . . . . . . . . . . 3 . . . . . . Sentry 17 | . . . . . 3 2 . 1 . 1 . 4 . . . 1 . . 3 . . . 1 1 . . . . Specialist 1 | . . . . . . . . . . . . . . . . . . . . . . 1 . . . . . . Hunter 6 | . . . . . . 2 . . . . 1 . 1 . . 1 . . 1 . . . . . . . . . Programmer 9 | . . . . . . 3 . . . . . . . . . . . . . . . 3 1 . . . 2 . Behemoth 3 | . . . . . . . . . . . . 1 . . . 1 . . . . . . 1 . . . . . Cetus Guard 2 | . . . . . . . . . . . . . 2 . . . . . . . . . . . . . . . Enhanced Grunt 2 | . . . . . . . . . . . . . . . . . . . 1 1 . . . . . . . . Executioner 1 | . . . . . . . . . . . . . . . . . . . . . . 1 . . . . . . Decomposer 1 | . . . . . . . . . . . . . . . . . . . . . 1 . . . . . . . Samaritan 1 | . . . . . . . . . . . . . . . . . . . . 1 . . . . . . . . Butcher 1 | . . . . . . . . . . . . . . . . 1 . . . . . . . . . . . . Best Kill Streak 26 | . 3 3 . 6 4 5 4 7 . 3 2 2 2 . 1 3 . 2 9 6 . 26 9 5 . 1 4 . Combat Bots Only 25 | . 2 3 . 6 4 4 4 7 . 3 2 1 2 . 1 3 . 2 5 6 . 25 9 5 . 1 1 . Max Kills in Single Turn 5 | . 2 2 . 3 1 2 2 3 . 1 2 1 1 . 1 1 . 1 5 3 1 4 1 1 . 1 1 . Gunslinging . | . . . . . . . . . . . . . . . . . . . . . . . . . . . . . Exploded 4 | . 2 1 . 3 1 2 2 3 . 1 2 1 . . . . . . 3 2 . 4 . 1 . . . . Melee 1 | . 1 . . . . 1 . 1 . . 1 1 . . . 1 . 1 1 1 . . 1 1 . 1 1 . Uniques/NPCs Destroyed 1 | . . . . . . . . . . . . . . . . . . . . . . . . . . 1 . . A5 (-3/Lab) Combat | -11 -10 -10 -10 -9 -8 -7 -7 -7 -7 -6 -6 -6 -6 -5 -5 -5 -5 -4 -4 -4 -4 -4 -3 -3 -3 -3 -2 -2 -------- Run | Yrd Mat Min Exi Min Mat Fac Low Low Zio Pro Fac Ext Cet Fac Upp Upp Zhi Pro Fac Upp Upp War Pro Res Arm Lab Res Gar Hostile Shots Fired 1479 | . 36 12 . 13 36 101 15 40 . 67 12 94 43 . 11 80 . 51 50 46 9 76 126 283 34 48 167 29 Missed 498 | . 5 4 . 4 17 35 7 8 . 26 4 42 9 . 4 21 . 18 18 16 3 21 29 102 11 5 73 16 Hits 981 | . 31 8 . 9 19 66 8 32 . 41 8 52 34 . 7 59 . 33 32 30 6 55 97 181 23 43 94 13 Melee 27 | . . . . 2 . . . 3 . 6 . . . . . . . 2 . 4 . 1 5 . 4 . . . Projectile 954 | . 31 8 . 7 19 66 8 29 . 35 8 52 34 . 7 59 . 31 32 26 6 54 92 181 19 43 94 13 AOE 4 | . . . . . . . . . . . . . . . . . . . . . . 4 . . . . . . Critical Strikes 36 | . . . . . . 2 1 2 . 2 . . 6 . 1 2 . . 4 2 . 3 4 2 1 . 3 1 Part Disruptions 2 | . . . . . . . . . . . . . . . . . . . . . . . . . 1 1 . . Damage Taken 20743 | . 465 99 . 205 308 593 149 816 . 974 314 547 804 . 209 1336 . 754 1049 826 131 1696 2298 2653 635 1730 1839 313 Core 4261 | . 119 48 . 19 30 71 8 94 . 259 73 97 113 . 33 87 . 50 126 23 . 272 208 279 77 729 1352 94 Absorbed by Shields 290 | . . . . . . . . . . . . 113 112 . . . . . . . . . . . . . 65 . Reduced by Siege Mode 85 | . . . . . . . . . . . . . . . . . . . . . . . 53 32 . . . . Ignored by Resistances 31 | . . . . . . 12 4 15 . . . . . . . . . . . . . . . . . . . . Regen/Repaired (Parts) 1384 | . . . . . . . . . 92 . 191 . . 6 70 334 . 342 44 . . 263 . . . . 12 30 Core Remaining (%) 57 | 100 . . . 25 94 . . . . 38 . . 66 . . . . 83 . . . . 45 . . 11 . . Volleys Fired 508 | . 38 14 . 12 30 21 16 27 . 29 16 54 23 7 15 29 . 32 28 18 7 36 44 11 1 . . . Largest 2 | . 2 2 . 2 1 1 1 2 . 1 1 1 1 1 1 1 . 1 1 1 1 2 1 1 1 . . . Hottest 110 | . 90 90 . 80 69 69 69 102 . 90 40 90 85 47 85 85 . 47 49 110 49 94 76 49 76 . . . Shots Fired 565 | . 70 25 . 18 30 22 17 29 . 29 16 54 23 7 15 30 . 32 27 19 8 38 44 11 1 . . . Gun 151 | . 69 24 . 13 . 2 . . . . . . . . . . . . . . . 12 24 7 . . . . Cannon 274 | . . . . . 23 17 6 13 . 20 14 26 20 7 15 29 . 29 20 7 7 . 20 . 1 . . . Launcher 95 | . 1 1 . 5 7 3 11 13 . 9 2 3 3 . . . . . 7 5 1 20 . 4 . . . . Special 45 | . . . . . . . . 3 . . . 25 . . . 1 . 3 . 7 . 6 . . . . . . Kinetic 144 | . . . . . . 2 . . . 11 14 17 . 7 . 15 . 29 20 1 7 . 20 . 1 . . . Thermal 167 | . 69 24 . 9 . . . . . 7 . 9 20 . 15 14 . . . . . . . . . . . . Explosive 95 | . 1 1 . 5 7 3 11 13 . 9 2 3 3 . . . . . 7 5 1 20 . 4 . . . . Electromagnetic 71 | . . . . 4 23 17 6 13 . 2 . . . . . . . . . 6 . . . . . . . . Entropic 43 | . . . . . . . . . . . . . . . . . . . . . . 12 24 7 . . . . Robot Hit Streak 13 | . 8 13 . 5 7 7 8 9 . 5 6 9 4 . 3 7 . 5 6 8 5 8 9 8 . . . . Robot Miss Streak 5 | . 3 2 . 2 3 2 2 2 . 2 2 3 3 . 2 5 . 3 3 1 1 2 2 1 . . . . Penetration Max 1 | . . . . . . . . . . . . . . . . . . 1 . . . 1 . . . . . . Secondary Targets 3 | . 1 2 . . . . . . . . . . . . . . . . . . . . . . . . . . Max Gunslinging Chain 1 | . 1 1 . . . . . . . . . . . . . . . . . . . . . . . . . . Shots Hit Robots 462 | . 40 18 . 7 20 36 8 29 . 16 9 44 12 . 9 21 . 26 31 19 4 24 42 21 . 16 10 . Core Hits 417 | . 20 12 . 14 15 22 23 46 . 17 10 11 16 . 1 13 . 7 33 20 3 87 21 17 . 4 5 . Critical Kills 3 | . . . . . . . . . . . . . 2 . 1 . . . . . . . . . . . . . Critical Parts Destroyed 5 | . . . . . . . . . . . . . . . . . . . . . . 3 1 1 . . . . Critical Strikes 32 | . 1 1 . . . 2 . 2 . . . 2 2 . 1 2 . 1 4 1 . 3 4 2 . 3 1 . Burn 2 | . 1 1 . . . . . . . . . . . . . . . . . . . . . . . . . . Meltdown 3 | . . . . . . . . . . . . . 2 . 1 . . . . . . . . . . . . . Blast 5 | . . . . . . . . . . . . . . . . 2 . . 1 . . . 2 . . . . . Sever 13 | . . . . . . 2 . 2 . . . 2 . . . . . 1 3 1 . . . 1 . 1 . . Detonate 5 | . . . . . . . . . . . . . . . . . . . . . . 3 1 1 . . . . Sunder 4 | . . . . . . . . . . . . . . . . . . . . . . . 1 . . 2 1 . Melee Attacks 243 | . 2 . . . 1 39 . 7 . 9 23 24 . 1 . 9 . 8 27 7 3 2 13 22 1 26 19 . Impact . | . . . . . . . . . . . . . . . . . . . . . . . . . . . . . Slashing 189 | . 2 . . . 1 39 . 7 . 9 23 24 . 1 . 9 . 8 27 7 3 2 . 20 1 6 . . Piercing . | . . . . . . . . . . . . . . . . . . . . . . . . . . . . . Entropic 54 | . . . . . . . . . . . . . . . . . . . . . . . 13 2 . 20 19 . Sneak Attacks 29 | . . . . . . 13 . . . . 2 5 . . . . . . 1 2 1 . . . . . 5 . Combat Hostiles 3 | . . . . . . 2 . . . . . 1 . . . . . . . . . . . . . . . . Follow-up Attacks 2 | . . . . . . . . . . . . 1 . . . . . . . . . . . 1 . . . . Damage Inflicted 32344 | . 560 347 . 578 1056 1999 1093 1826 . 1009 602 1292 681 37 319 853 . 1024 2279 1243 324 8170 2717 1768 19 1284 1264 . Guns 2440 | . 474 251 . 69 . . . . . . . . . . . . . . . . . 609 772 265 . . . . Cannons 5790 | . . . . . 425 355 119 244 . 288 99 228 485 37 319 648 . 731 370 184 119 . 1139 . . . . . Explosions 15863 | . 61 96 . 509 623 342 974 1362 . 619 294 107 196 . . . . . 1241 764 119 7561 51 944 . . . . Melee 8086 | . 25 . . . . 1302 . 220 . 102 209 957 . . . 205 . 293 668 295 86 . 755 559 . 1146 1264 . Ramming 165 | . . . . . 8 . . . . . . . . . . . . . . . . . . . 19 138 . . Kinetic 3073 | . . . . . . . . . . 138 99 . . 37 . 440 . 731 370 . 119 . 1139 . . . . . Thermal 3144 | . 474 251 . 32 78 . . . . 102 . 228 485 . 319 208 . . . . . 843 51 73 . . . . Explosive 14818 | . 61 96 . 509 545 342 974 1362 . 619 294 107 196 . . . . . 1241 764 119 6718 . 871 . . . . Electromagnetic 1412 | . . . . 37 425 355 119 244 . 48 . . . . . . . . . 184 . . . . . . . . Impact . | . . . . . . . . . . . . . . . . . . . . . . . . . . . . . Slashing 5023 | . 25 . . . . 1302 . 220 . 102 209 957 . . . 205 . 293 668 295 86 . . 389 . 272 . . Piercing . | . . . . . . . . . . . . . . . . . . . . . . . . . . . . . Entropic 4709 | . . . . . . . . . . . . . . . . . . . . . . 609 1527 435 . 874 1264 . Highest Corruption 49 | . . . . . . 4 4 4 4 . . 1 11 . . 1 1 1 5 5 5 5 11 . 1 49 1 2 Average Corruption 4 | . . . . . . 3 4 4 4 . . 1 2 . . 1 1 1 3 5 5 4 10 . 1 23 1 1 Corruption Purged . | . . . . . . . . . . . . . . . . . . . . . . . . . . . . . Corruption Blocked . | . . . . . . . . . . . . . . . . . . . . . . . . . . . . . Effects 208 | . . . . . . 16 27 10 . . . 8 9 . . 11 3 6 12 27 22 3 33 . 1 17 1 2 Message Errors 43 | . . . . . . 2 9 2 . . . . 3 . . 2 . 1 3 1 5 . 9 . . 5 . 1 Matter Fused 66 | . . . . . . 6 5 4 . . . 5 3 . . 7 . 3 4 10 5 1 7 . . 5 1 . Heat Flow Errors 23 | . . . . . . 4 1 . . . . 1 . . . . . . 1 3 5 1 2 . . 5 . . Energy Discharges 22 | . . . . . . 2 1 1 . . . 1 1 . . 1 . . 3 2 3 1 6 . . . . . Parts Rejected 3 | . . . . . . . . . . . . . . . . . . . . . . . 3 . . . . . Data Loss (minor) 23 | . . . . . . 1 5 . . . . . 2 . . . 2 2 . 4 2 . 2 . 1 2 . . Data Loss (major) 8 | . . . . . . . 1 1 . . . 1 . . . . 1 . . 1 1 . 2 . . . . . Misfires 9 | . . . . . . 1 2 1 . . . . . . . 1 . . . 2 1 . 1 . . . . . Alerts 7 | . . . . . . . 2 1 . . . . . . . . . . . 3 . . . . . . . 1 Weapon Failures 4 | . . . . . . . 1 . . . . . . . . . . . 1 1 . . 1 . . . . . Overload Shots . | . . . . . . . . . . . . . . . . . . . . . . . . . . . . . Overflow Damage 1724 | . . . . 15 9 122 36 58 . . 94 128 . . . 24 . 108 . 58 81 228 268 111 . 26 358 . Projectiles 304 | . . . . . . 32 . . . . . . . . . 17 . 108 . . . . 147 . . . . . Explosions 411 | . . . . 15 9 15 36 32 . . 2 10 . . . . . . . 12 . 228 . 52 . . . . Melee 1009 | . . . . . . 75 . 26 . . 92 118 . . . 7 . . . 46 81 . 121 59 . 26 358 . Knockbacks 12 | . . . . . . . . . . . . . . . . 3 . 4 2 . . . 3 . . . . . Impact . | . . . . . . . . . . . . . . . . . . . . . . . . . . . . . Kinetic 11 | . . . . . . . . . . . . . . . . 3 . 4 2 . . . 2 . . . . . Secondary 1 | . . . . . . . . . . . . . . . . . . . . . . . 1 . . . . . Self-Inflicted Damage 766 | . . . . 55 42 . 24 131 . 6 . . . . . . . . 103 99 . 85 . 83 . 138 . . Shots 20 | . . . . 3 2 . 2 4 . 1 . . . . . . . . 2 2 . 1 . 3 . . . . Rammed 5 | . . . . . 3 . . . . . . . . . . . . . . . . . . . 2 . . . Targets Rammed 6 | . . . . . 4 . . . . . . . . . . . . . . . . . . . 2 . . . Kicked . | . . . . . . . . . . . . . . . . . . . . . . . . . . . . . Crushed 1 | . . . . . 1 . . . . . . . . . . . . . . . . . . . . . . . Highest Temperature 340 | . 217 156 . 54 222 284 267 169 . 178 6 261 294 . 129 229 . 144 219 340 294 151 157 14 26 242 . . Average Temperature 75 | . 70 67 . 19 51 100 74 75 . 79 3 122 108 . 49 88 . 44 40 91 97 73 50 7 16 115 . . Received Heat Transfer 2210 | . 186 57 . 12 117 36 90 162 . 247 63 75 . . 30 321 . 66 69 178 9 39 291 72 36 . 54 . Effects 2 | . . . . . . . . . . . . 1 . . . . . . . . 1 . . . . . . . Energy Bleed 2 | . . . . . . . . . . . . 1 . . . . . . . . 1 . . . . . . . Siege Activations 9 | . . . . . . . . . . . . . 1 . . . . . . . . . 5 2 1 . . . Total Turns 370 | . . . . . . . . . . . . . 2 . . . . . . . . . 276 89 3 . . . Longest Duration 211 | . . . . . . . . . . . . . 2 . . . . . . . . . 211 81 3 . . . Martial Activations . | . . . . . . . . . . . . . . . . . . . . . . . . . . . . . Shielding Activations . | . . . . . . . . . . . . . . . . . . . . . . . . . . . . . Robots Disrupted . | . . . . . . . . . . . . . . . . . . . . . . . . . . . . . Combat Hostiles . | . . . . . . . . . . . . . . . . . . . . . . . . . . . . . Robots Corrupted 3 | . . . . . 1 2 . . . . . . . . . . . . . . . . . . . . . . Combat Hostiles 2 | . . . . . 1 1 . . . . . . . . . . . . . . . . . . . . . . Parts Fried 6 | . . . . . 2 4 . . . . . . . . . . . . . . . . . . . . . . Impact Corruptions . | . . . . . . . . . . . . . . . . . . . . . . . . . . . . . Robots Melted 3 | . . . . . . . . . . . . . 2 . 1 . . . . . . . . . . . . . Combat Hostiles 3 | . . . . . . . . . . . . . 2 . 1 . . . . . . . . . . . . . Parts Melted 8 | . . 1 . . . . . . . . . 5 . . 1 . . . 1 . . . . . . . . . Heat Transferred 4616 | . 1338 731 . 75 100 . . . . 150 . 350 592 . 370 259 . . . . . 551 50 50 . . . . Parts Sabotaged 3 | . . . . . . . . . . . . . . . . . . . . . . 1 2 . . . . . Parts Stolen . | . . . . . . . . . . . . . . . . . . . . . . . . . . . . . Parts Stripped . | . . . . . . . . . . . . . . . . . . . . . . . . . . . . . Power Chain Reactions 2 | . . . . . 2 . . . . . . . . . . . . . . . . . . . . . . . Alert | -11 -10 -10 -10 -9 -8 -7 -7 -7 -7 -6 -6 -6 -6 -5 -5 -5 -5 -4 -4 -4 -4 -4 -3 -3 -3 -3 -2 -2 ------- Run | Yrd Mat Min Exi Min Mat Fac Low Low Zio Pro Fac Ext Cet Fac Upp Upp Zhi Pro Fac Upp Upp War Pro Res Arm Lab Res Gar Maximum Alert Level 5 | . . . . . 1 . . . . . . 2 1 . . . . . 5 . . . . 2 . . 1 . Low Security (%) 77 | 100 100 100 . 100 92 100 . . . . 100 74 . 100 . . . . . . . . . . 100 . 94 100 Level 1 14 | . . . . . 7 . . . . . . 5 100 . . . . . 4 . . . . 99 . . 5 . Level 2 4 | . . . . . . . . . . . . 20 . . . . . . 37 . . . . . . . . . Level 3 1 | . . . . . . . . . . . . . . . . . . . 22 . . . . . . . . . Level 4 1 | . . . . . . . . . . . . . . . . . . . 24 . . . . . . . . . Level 5 . | . . . . . . . . . . . . . . . . . . . 10 . . . . . . . . . High Security . | . . . . . . . . . . . . . . . . . . . . . . . . . . . . . Max Security . | . . . . . . . . . . . . . . . . . . . . . . . . . . . . . Peak Influence 1706 | . 87 94 . 193 219 101 . . . . 167 480 370 179 . . . . 1706 . . . . 399 184 . 206 145 Initial 357 | . . 22 . . 63 56 . . . . 52 42 244 179 . . . . 357 . . . . 300 184 . . 145 Average 168 | . 35 49 . 144 112 31 . . . . 53 163 312 109 . . . . 981 . . . . 326 77 . 54 138 Influence Increases 10752 | . 293 174 . 293 391 427 150 321 . 405 338 940 466 18 380 1495 . 820 1665 294 33 475 410 623 17 . 324 . Destroy 0b10 Robot/C 5320 | . 180 100 . 200 220 220 140 280 . 220 140 420 200 . 160 680 . 380 520 240 20 440 360 160 . . 40 . Destroy 0b10 Robot/NC 260 | . 10 5 . . 10 60 . 5 . . 10 35 10 . . . . . 60 . . 20 10 . . . 25 . Destroy Leader 706 | . 44 20 . 30 52 72 10 20 . 40 30 34 10 . 30 60 . 30 124 10 10 . 40 30 . . 10 . Allied During Kill 2659 | . . 5 . . . . . 1 . 145 59 392 220 . 190 740 . 410 450 44 3 . . . . . . . Successful Hack 108 | . 22 . . . . 25 . . . . 12 15 . 8 . . . . 8 . . . . . . . 18 . Disable Machine 360 | . 15 . . 30 45 15 . . . . 30 . . . . . . . 195 . . . . 15 15 . . . Destroy Structure 664 | . 7 14 . 33 49 20 . . . . 57 29 26 10 . . . . 308 . . . . 88 2 . 21 . Advance Influence 300 | . . . . . . . . . . . . . . . . . . . . . . . . 300 . . . . Lose Combat Pursuer 375 | . 15 30 . . 15 15 . 15 . . . 15 . . . 15 . . . . . 15 . 30 . . 210 . Influence Decreases 10627 | . 235 158 74 130 430 474 149 339 60 321 336 588 582 303 331 754 827 252 527 1090 583 418 827 272 368 . 130 69 Entered New Map 3664 | . . 36 74 . 100 68 30 15 60 . 32 44 194 143 15 17 827 . 211 632 173 360 417 . 167 . . 49 Time Decay 5802 | . 205 92 . 130 320 396 119 254 . 291 203 375 238 160 296 557 . 252 246 428 380 28 348 222 172 . 90 . Lost Part 442 | . 30 10 . . 10 10 . 50 . 30 11 . 30 . . 20 . . 20 10 10 30 52 50 19 . 30 20 Lost Ally 719 | . . 20 . . . . . 20 . . 90 169 120 . 20 160 . . 50 20 20 . 10 . 10 . 10 . Squads Dispatched 46 | . 2 1 . . 2 5 . 1 . . 4 1 1 2 . 1 . 1 11 . . . 1 7 2 . 4 . Investigation 13 | . 1 . . . . 1 . . . . 1 1 1 1 . 1 . . 3 . . . . 1 . . 2 . Extermination 10 | . . . . . . 4 . . . . 1 . . 1 . . . . 1 . . . . 1 1 . 1 . Reinforcement 11 | . 1 . . . 2 . . . . . 2 . . . . . . . 3 . . . . 2 1 . . . Assault 5 | . . 1 . . . . . 1 . . . . . . . . . 1 1 . . . 1 . . . . . Garrison 6 | . . . . . . . . . . . . . . . . . . . 3 . . . . 3 . . . . Intercept 1 | . . . . . . . . . . . . . . . . . . . . . . . . . . . 1 . Searches Triggered . | . . . . . . . . . . . . . . . . . . . . . . . . . . . . . Construction Impeded 2 | . . . . . 1 . . . . . . . . . . . . . 1 . . . . . . . . . Haulers Reinforced 1 | . . . . . . . . . . . . . . . . . . . 1 . . . . . . . . . Active Scanning Responses . | . . . . . . . . . . . . . . . . . . . . . . . . . . . . . Cargo Convoy Interrupts . | . . . . . . . . . . . . . . . . . . . . . . . . . . . . . Stealth | -11 -10 -10 -10 -9 -8 -7 -7 -7 -7 -6 -6 -6 -6 -5 -5 -5 -5 -4 -4 -4 -4 -4 -3 -3 -3 -3 -2 -2 --------- Run | Yrd Mat Min Exi Min Mat Fac Low Low Zio Pro Fac Ext Cet Fac Upp Upp Zhi Pro Fac Upp Upp War Pro Res Arm Lab Res Gar Distress Signals 9 | . . . . . . 1 . . . . . 2 2 . . . . . 1 . . 2 . . 1 . . . Communications Jammed . | . . . . . . . . . . . . . . . . . . . . . . . . . . . . . Distress Signals . | . . . . . . . . . . . . . . . . . . . . . . . . . . . . . Times Spotted 362 | . 11 8 . 5 17 15 8 15 . 11 8 21 12 . 9 31 . 19 28 13 1 46 23 15 10 1 27 8 Peak Tracking Total 18 | . 3 4 . 4 3 4 4 7 . 3 3 4 5 . 3 10 . 5 7 7 1 18 9 6 6 1 11 9 Tactical Retreats 14 | . 1 2 . . 1 1 . 1 . . . 1 . . . 1 . . . . . 1 . 1 . . 4 . Traps | -11 -10 -10 -10 -9 -8 -7 -7 -7 -7 -6 -6 -6 -6 -5 -5 -5 -5 -4 -4 -4 -4 -4 -3 -3 -3 -3 -2 -2 ------- Run | Yrd Mat Min Exi Min Mat Fac Low Low Zio Pro Fac Ext Cet Fac Upp Upp Zhi Pro Fac Upp Upp War Pro Res Arm Lab Res Gar Traps Triggered 10 | . 2 . . 1 . 3 . . . . . 1 . . . . . . 2 . . . . . . . 1 . Indirectly . | . . . . . . . . . . . . . . . . . . . . . . . . . . . . . Trap Hack Attempts . | . . . . . . . . . . . . . . . . . . . . . . . . . . . . . Triggered . | . . . . . . . . . . . . . . . . . . . . . . . . . . . . . Disarmed . | . . . . . . . . . . . . . . . . . . . . . . . . . . . . . Reprogrammed . | . . . . . . . . . . . . . . . . . . . . . . . . . . . . . Reused . | . . . . . . . . . . . . . . . . . . . . . . . . . . . . . Traps Extracted . | . . . . . . . . . . . . . . . . . . . . . . . . . . . . . Installed . | . . . . . . . . . . . . . . . . . . . . . . . . . . . . . Triggered . | . . . . . . . . . . . . . . . . . . . . . . . . . . . . . Machines | -11 -10 -10 -10 -9 -8 -7 -7 -7 -7 -6 -6 -6 -6 -5 -5 -5 -5 -4 -4 -4 -4 -4 -3 -3 -3 -3 -2 -2 ---------- Run | Yrd Mat Min Exi Min Mat Fac Low Low Zio Pro Fac Ext Cet Fac Upp Upp Zhi Pro Fac Upp Upp War Pro Res Arm Lab Res Gar Machines Disabled 31 | . 1 . . 2 3 1 . 1 . . 2 . . . . 2 . . 13 2 . . . 1 1 2 . . Max in Single Turn 2 | . 1 . . 1 1 1 . 1 . . . . . . . 1 . . 2 1 . . . 1 1 1 . . Garrison Access 2 | . . . . . . . . . . . 1 . . 1 . . . . . . . . . . . . . . Machines Repaired . | . . . . . . . . . . . . . . . . . . . . . . . . . . . . . Machines Dismantled . | . . . . . . . . . . . . . . . . . . . . . . . . . . . . . Machines Sabotaged . | . . . . . . . . . . . . . . . . . . . . . . . . . . . . . Overloaded Fab Kills . | . . . . . . . . . . . . . . . . . . . . . . . . . . . . . Hacking | -11 -10 -10 -10 -9 -8 -7 -7 -7 -7 -6 -6 -6 -6 -5 -5 -5 -5 -4 -4 -4 -4 -4 -3 -3 -3 -3 -2 -2 --------- Run | Yrd Mat Min Exi Min Mat Fac Low Low Zio Pro Fac Ext Cet Fac Upp Upp Zhi Pro Fac Upp Upp War Pro Res Arm Lab Res Gar Machines Accessed 57 | . 3 . 4 1 3 7 . . . . 2 7 1 3 . 2 6 . 3 1 . 7 . 1 . 3 3 . Terminals 21 | . 3 . . . 3 5 . . . . . 7 1 . . 1 . . . . . . . . . . 1 . Fabricators 6 | . . . . . . 2 . . . . 1 . . 1 . . . . 1 . . . . 1 . . . . Repair Stations . | . . . . . . . . . . . . . . . . . . . . . . . . . . . . . Recycling Units . | . . . . . . . . . . . . . . . . . . . . . . . . . . . . . Scanalyzers 2 | . . . . . . . . . . . . . . 1 . . . . 1 . . . . . . . . . Garrison Access 5 | . . . . . . . . . . . 1 . . 1 . . . . 1 . . . . . . . 2 . Total Hacks 182 | . 10 . 49 1 5 14 . . . . 4 11 2 8 . 4 19 . 7 1 . 17 . 2 . 24 4 . Successful 150 | . 4 . 49 1 . 8 . . . . 3 7 . 5 . 4 19 . 4 1 . 17 . 2 . 24 2 . Failed 31 | . 6 . . . 5 6 . . . . 1 4 2 2 . . . . 3 . . . . . . . 2 . Catastrophic 9 | . 4 . . . 2 . . . . . . 1 1 . . . . . . . . . . . . . 1 . Database Lockouts 1 | . . . . . . . . . . . . . . 1 . . . . . . . . . . . . . . Manual 43 | . 9 . . . 2 6 . . . . 7 4 1 6 . . . . . . . 2 . . 2 2 2 . Terminals 42 | . 10 . . . 5 10 . . . . . 11 2 . . 3 . . . . . . . . . . 1 . Fabricators 14 | . . . . . . 4 . . . . 3 . . 3 . . . . 2 . . . . 2 . . . . Repair Stations . | . . . . . . . . . . . . . . . . . . . . . . . . . . . . . Recycling Units . | . . . . . . . . . . . . . . . . . . . . . . . . . . . . . Scanalyzers 5 | . . . . . . . . . . . . . . 3 . . . . 2 . . . . . . . . . Garrison Access 9 | . . . . . . . . . . . 1 . . 2 . . . . 3 . . . . . . . 3 . Terminal Hacks 132 | . 4 . 49 1 . 5 . . . . . 7 . . . 4 19 . . 1 . 17 . . . 24 1 . Record 97 | . . . 49 . . . . . . . . . . . . 3 7 . . . . 15 . . . 23 . . Part Schematic 5 | . 1 . . . . . . . . . . . . . . . 4 . . . . . . . . . . . Robot Schematic 1 | . 1 . . . . . . . . . . . . . . . . . . . . . . . . . . . Robot Analysis 5 | . . . . . . 1 . . . . . . . . . . 4 . . . . . . . . . . . Prototype ID Bank 7 | . 1 . . . . 2 . . . . . . . . . . 4 . . . . . . . . . . . Open Door 12 | . . . . 1 . . . . . . . 7 . . . 1 . . . 1 . 2 . . . . . . Open DSF 1 | . . . . . . . . . . . . . . . . . . . . . . . . . . . 1 . Branch Access Points 1 | . 1 . . . . . . . . . . . . . . . . . . . . . . . . . . . Fabricator Index 1 | . . . . . . 1 . . . . . . . . . . . . . . . . . . . . . . Zone Layout 1 | . . . . . . 1 . . . . . . . . . . . . . . . . . . . . . . Release Object 1 | . . . . . . . . . . . . . . . . . . . . . . . . . . 1 . . Fabricator Hacks 10 | . . . . . . 2 . . . . 2 . . 2 . . . . 2 . . . . 2 . . . . Load Schematic 5 | . . . . . . 1 . . . . 1 . . 1 . . . . 1 . . . . 1 . . . . Build 5 | . . . . . . 1 . . . . 1 . . 1 . . . . 1 . . . . 1 . . . . Repair Station Hacks . | . . . . . . . . . . . . . . . . . . . . . . . . . . . . . Recycling Unit Hacks . | . . . . . . . . . . . . . . . . . . . . . . . . . . . . . Scanalyzer 4 | . . . . . . . . . . . . . . 2 . . . . 2 . . . . . . . . . Retrieve Study 4 | . . . . . . . . . . . . . . 2 . . . . 2 . . . . . . . . . Garrison Access Hacks 3 | . . . . . . . . . . . 1 . . 1 . . . . . . . . . . . . 1 . Unlock Access 1 | . . . . . . . . . . . . . . . . . . . . . . . . . . . 1 . Seal Access 2 | . . . . . . . . . . . 1 . . 1 . . . . . . . . . . . . . . Unauthorized Hacks 1 | . . . . . . 1 . . . . . . . . . . . . . . . . . . . . . . Terminals 1 | . . . . . . 1 . . . . . . . . . . . . . . . . . . . . . . Assimilate 1 | . . . . . . 1 . . . . . . . . . . . . . . . . . . . . . . Fabricators . | . . . . . . . . . . . . . . . . . . . . . . . . . . . . . Repair Stations . | . . . . . . . . . . . . . . . . . . . . . . . . . . . . . Recycling Units . | . . . . . . . . . . . . . . . . . . . . . . . . . . . . . Scanalyzers . | . . . . . . . . . . . . . . . . . . . . . . . . . . . . . Garrison Access . | . . . . . . . . . . . . . . . . . . . . . . . . . . . . . Data Cores Recovered . | . . . . . . . . . . . . . . . . . . . . . . . . . . . . . Used . | . . . . . . . . . . . . . . . . . . . . . . . . . . . . . Hacking Detections 26 | . 3 . . . 3 6 . . . . 1 3 1 2 . 1 . . 3 . . . . 1 . . 2 . Full Trace Events 12 | . 2 . . . . 1 . . . . 1 1 1 1 . 1 . . 2 . . . . 1 . . 1 . Feedback Events 2 | . . . . . . . . . . . . 1 . . . 1 . . . . . . . . . . . . Corruption 2 | . . . . . . . . . . . . 1 . . . 1 . . . . . . . . . . . . Feedback Blocked 1 | . . . . . . . . . . . . . . . . . . . 1 . . . . . . . . . Robot Schematics Acquired 4 | . 1 . . . . . . . 3 . . . . . . . . . . . . . . . . . . . Robots Built 3 | . . . . . . . . . . . 1 . . 1 . . . . 1 . . . . . . . . . Authchips . | . . . . . . . . . . . . . . . . . . . . . . . . . . . . . Time 161 | . . . . . . . . . . . 40 . . 40 . . . . 81 . . . . . . . . . Total Robot Build Rating 3 | . . . . . . . . . . . 1 . . 1 . . . . 1 . . . . . . . . . Part Schematics Acquired 20 | . 1 . . . . . . . 15 . . . . . . . 4 . . . . . . . . . . . Parts Built 2 | . . . . . . 1 . . . . . . . . . . . . . . . . . 1 . . . . Authchips . | . . . . . . . . . . . . . . . . . . . . . . . . . . . . . Time 102 | . . . . . . 51 . . . . . . . . . . . . . . . . . 51 . . . . Total Part Build Rating 2 | . . . . . . 1 . . . . . . . . . . . . . . . . . 1 . . . . Part Studies Acquired 2 | . . . . . . . . . . . . . . 1 . . . . 1 . . . . . . . . . Parts Repaired . | . . . . . . . . . . . . . . . . . . . . . . . . . . . . . Time . | . . . . . . . . . . . . . . . . . . . . . . . . . . . . . Parts Recycled . | . . . . . . . . . . . . . . . . . . . . . . . . . . . . . Recycled Matter . | . . . . . . . . . . . . . . . . . . . . . . . . . . . . . Retrieved Matter . | . . . . . . . . . . . . . . . . . . . . . . . . . . . . . Retrieved Components . | . . . . . . . . . . . . . . . . . . . . . . . . . . . . . Parts Scanalyzed . | . . . . . . . . . . . . . . . . . . . . . . . . . . . . . Part Schematics Acquired . | . . . . . . . . . . . . . . . . . . . . . . . . . . . . . Parts Damaged . | . . . . . . . . . . . . . . . . . . . . . . . . . . . . . Bothacking | -11 -10 -10 -10 -9 -8 -7 -7 -7 -7 -6 -6 -6 -6 -5 -5 -5 -5 -4 -4 -4 -4 -4 -3 -3 -3 -3 -2 -2 ------------ Run | Yrd Mat Min Exi Min Mat Fac Low Low Zio Pro Fac Ext Cet Fac Upp Upp Zhi Pro Fac Upp Upp War Pro Res Arm Lab Res Gar Used RIF Installer . | . . . . . . . . . . . . . . . . . . . . . . . . . . . . . Robots Hacked . | . . . . . . . . . . . . . . . . . . . . . . . . . . . . . Non-combat . | . . . . . . . . . . . . . . . . . . . . . . . . . . . . . Combat . | . . . . . . . . . . . . . . . . . . . . . . . . . . . . . Robot Hacks Applied . | . . . . . . . . . . . . . . . . . . . . . . . . . . . . . Relay Couplers Released . | . . . . . . . . . . . . . . . . . . . . . . . . . . . . . Fabnet Peak Effective % . | . . . . . . . . . . . . . . . . . . . . . . . . . . . . . Robots Rewired 20 | . . . . . . . . 1 . . . 15 . . . . . 1 . 3 . . . . . . . . Allies Hacked . | . . . . . . . . . . . . . . . . . . . . . . . . . . . . . Hacks Repelled . | . . . . . . . . . . . . . . . . . . . . . . . . . . . . . Allies | -11 -10 -10 -10 -9 -8 -7 -7 -7 -7 -6 -6 -6 -6 -5 -5 -5 -5 -4 -4 -4 -4 -4 -3 -3 -3 -3 -2 -2 -------- Run | Yrd Mat Min Exi Min Mat Fac Low Low Zio Pro Fac Ext Cet Fac Upp Upp Zhi Pro Fac Upp Upp War Pro Res Arm Lab Res Gar Total Allies 61 | . . 2 . . . 1 . 1 6 . 5 31 5 3 . . . 1 1 3 . . . . 1 . 1 . Largest Group 23 | . . 1 1 . . 1 . 1 6 6 7 21 23 22 22 21 9 10 8 2 2 1 . . 1 . 1 . Highest-Rated Group 1112 | . . 31 31 . . 10 . 32 221 221 229 714 1112 1015 941 906 476 506 449 96 88 47 . . 29 . 27 . Highest-Rated Ally 159 | . . 31 31 . . 10 . 32 41 41 41 159 159 159 96 96 96 96 96 96 47 47 . . 29 . 27 . Zionite Dispatches 7 | . . . . . . . . . . . 2 2 . 1 . . . . . . . . . . 1 . 1 . Light 1 | . . . . . . . . . . . . 1 . . . . . . . . . . . . . . . . Recon 1 | . . . . . . . . . . . 1 . . . . . . . . . . . . . . . . . Fire 2 | . . . . . . . . . . . 1 1 . . . . . . . . . . . . . . . . Demo 1 | . . . . . . . . . . . . . . 1 . . . . . . . . . . . . . . Kinetic Resupply 1 | . . . . . . . . . . . . . . . . . . . . . . . . . . . 1 . Infowar Resupply 1 | . . . . . . . . . . . . . . . . . . . . . . . . . 1 . . . Total Orders 26 | . . . . . . . . . . . 1 . . 2 1 7 1 1 1 1 . . 7 . 2 . 2 . STAY 4 | . . . . . . . . . . . . . . . . 2 . . . 1 . . . . . . 1 . ROAM 3 | . . . . . . . . . . . . . . . . 1 . . . . . . 1 . 1 . . . FOLLOW 2 | . . . . . . . . . . . . . . 1 . 1 . . . . . . . . . . . . AID 9 | . . . . . . . . . . . 1 . . 1 1 3 1 1 1 . . . . . . . . . DROP 2 | . . . . . . . . . . . . . . . . . . . . . . . . . 1 . 1 . EXPLORE 2 | . . . . . . . . . . . . . . . . . . . . . . . 2 . . . . . RETURN 4 | . . . . . . . . . . . . . . . . . . . . . . . 4 . . . . . Ally Attacks 705 | . . 13 . . . . . 1 . 64 11 147 80 . 38 146 . 86 79 33 7 . . . . . . . Total Damage 20644 | . . 209 . . . . . 54 . 1150 966 3129 1497 . 1108 3715 . 2822 4550 1197 247 . . . . . . . Kills 124 | . . 1 . . . . . . . 6 5 19 9 . 6 30 . 17 25 5 1 . . . . . . . Allies Corrupted . | . . . . . . . . . . . . . . . . . . . . . . . . . . . . . Allies Melted . | . . . . . . . . . . . . . . . . . . . . . . . . . . . . . Intel | -11 -10 -10 -10 -9 -8 -7 -7 -7 -7 -6 -6 -6 -6 -5 -5 -5 -5 -4 -4 -4 -4 -4 -3 -3 -3 -3 -2 -2 ------- Run | Yrd Mat Min Exi Min Mat Fac Low Low Zio Pro Fac Ext Cet Fac Upp Upp Zhi Pro Fac Upp Upp War Pro Res Arm Lab Res Gar Active Infowar (turns) 18136 | . . 116 . . . 1643 1167 541 1864 975 750 929 405 327 1057 2060 320 822 533 1049 898 1406 130 436 320 388 . . Optics 587 | . . . . . . . . . . . . . . . . . . . . . . . . . 199 388 . . Sensors 13249 | . . . . . . 1643 1167 541 1864 903 750 918 405 327 1057 2060 320 822 472 . . . . . . . . . Terrain 7664 | . . 116 . . . . . . . 72 749 324 . 326 1039 749 . . 485 1049 898 1406 130 . 196 125 . . Structural 1782 | . . . . . . 1225 . . . . . . . . . . . . . . . . . 436 121 . . . Robot Analysis Total 5 | . . . . . . 1 . . . . . . . . . . 4 . . . . . . . . . . . Derelict Logs Recovered 7 | . . . . 1 . . . 1 1 1 . . . . . 1 . 1 . 1 . . . . . . . . Drone Launches 4 | . . . . . . . . . . . . . . . . . . . . . . . 4 . . . . . Drone Recoveries 3 | . . . . . . . . . . . . . . . . . . . . . . . 3 . . . . . Zionite Intel Received 1 | . . . . . . . . . . . . . . 1 . . . . . . . . . . . . . . Branch Access 1 | . . . . . . . . . . . . . . 1 . . . . . . . . . . . . . . Exploration | -11 -10 -10 -10 -9 -8 -7 -7 -7 -7 -6 -6 -6 -6 -5 -5 -5 -5 -4 -4 -4 -4 -4 -3 -3 -3 -3 -2 -2 ------------- Run | Yrd Mat Min Exi Min Mat Fac Low Low Zio Pro Fac Ext Cet Fac Upp Upp Zhi Pro Fac Upp Upp War Pro Res Arm Lab Res Gar Turns Passed 22693 | 76 495 238 608 267 831 1647 1167 541 1864 1244 756 929 512 327 1057 2060 320 822 533 1049 898 1406 1042 466 476 628 354 80 Spaces Moved 13607 | 80 385 182 639 142 496 1065 768 335 1329 720 434 493 165 157 507 1025 198 441 247 713 534 771 346 128 140 528 559 80 Core 750 | 1 . . . . . . . . . . . . . . . . . . . . . . . . . 375 374 . Treads 903 | . . . . 137 56 . . . . . . . 2 . . . . . . . . . 287 128 140 153 . . Legs 675 | . . . . . 431 244 . . . . . . . . . . . . . . . . . . . . . . Wheels 11014 | 79 385 182 639 5 9 821 768 335 1329 720 434 493 163 157 507 1025 198 441 247 713 534 771 59 . . . . . Hover . | . . . . . . . . . . . . . . . . . . . . . . . . . . . . . Flight 265 | . . . . . . . . . . . . . . . . . . . . . . . . . . . 185 80 Fastest Speed 40 | 50 80 95 95 95 125 115 145 130 130 130 130 130 130 135 135 135 135 135 116 118 118 153 153 162 163 50 40 40 Average Speed 127 | 79 90 104 95 157 133 120 145 131 130 130 130 130 181 135 135 135 135 135 120 118 143 153 162 212 240 91 46 40 Slowest Speed 500 | 80 110 110 95 160 270 145 145 145 130 145 130 145 240 145 135 135 135 135 135 135 153 153 243 320 320 500 120 40 Overloaded Moves . | . . . . . . . . . . . . . . . . . . . . . . . . . . . . . Propulsion Burnouts . | . . . . . . . . . . . . . . . . . . . . . . . . . . . . . Robots Hopped 3 | . . . . . . . . . . . . . . . . . . . . . . . . . . . . 3 Potential Cave-ins 11 | . . . . . . . . . . 2 . 2 . 2 . . . . . . . 5 . . . . . . Cave-ins Triggered 1 | . . . . . . . . . . . . 1 . . . . . . . . . . . . . . . . Teleports 2 | . . . . . . . . . . . . . . . . . . . . . . . . . 1 . 1 . Exploration Rate (%) 53 | 4 45 33 89 36 45 28 80 58 90 84 13 72 68 4 84 82 62 66 12 89 75 91 77 4 11 100 22 18 Regions Visited 28 Branch Regions 19 Pre-discovered Areas 5 | . . . 1 . . . . . 1 . . . . . . . 3 . . . . . . . . . . . Known Exits Taken 27 | . 1 1 1 1 1 1 1 1 1 1 1 1 1 1 1 1 1 1 1 1 1 1 1 1 1 1 1 . Unknown Exits Taken 1 | 1 . . . . . . . . . . . . . . . . . . . . . . . . . . . . Scrap Searched 25 | . . . . . . . 5 2 2 5 . . . . 2 1 . . . 4 3 . 1 . . . . . Spaces Dug 149 | . . . . 5 . 11 . 9 . 11 26 32 . 10 . 1 . . 10 . 6 2 . 16 1 2 7 . Terrain Destroyed 984 | . 7 14 . 41 64 20 72 50 . 72 35 48 34 10 5 7 . 15 128 103 31 148 24 46 1 2 7 . Melee 65 | . . . . . . 11 . . . 1 19 6 . 1 . 1 . . 8 . 2 2 . 4 1 2 7 . Projectile 123 | . . . . . . . . . . 5 9 17 2 9 5 6 . 15 8 2 4 11 24 6 . . . . AOE 796 | . 7 14 . 41 64 9 72 50 . 66 7 25 32 . . . . . 112 101 25 135 . 36 . . . . Terrain Rammed 23 | . . . . . . . . . . . . . . . . . . . . . . . . . . 23 . . Walls Destroyed . | . . . . . . . . . . . . . . . . . . . . . . . . . . . . . Machines Disabled . | . . . . . . . . . . . . . . . . . . . . . . . . . . . . . Actions | -11 -10 -10 -10 -9 -8 -7 -7 -7 -7 -6 -6 -6 -6 -5 -5 -5 -5 -4 -4 -4 -4 -4 -3 -3 -3 -3 -2 -2 --------- Run | Yrd Mat Min Exi Min Mat Fac Low Low Zio Pro Fac Ext Cet Fac Upp Upp Zhi Pro Fac Upp Upp War Pro Res Arm Lab Res Gar Total 18139 | 89 456 204 639 169 641 1345 803 392 1467 969 569 700 359 261 864 1664 257 625 416 895 651 965 772 282 276 654 630 125 Wait 3009 | . 11 1 . 2 35 132 2 7 122 177 78 61 142 85 335 572 36 140 65 135 93 128 336 104 102 38 26 44 Move 13574 | 79 384 181 638 141 495 1064 767 334 1328 719 433 491 164 156 506 1024 197 440 246 712 533 770 345 127 139 527 559 75 Hop 2 | . . . . . . . . . . . . . . . . . . . . . . . . . . . . 2 Pick Up 184 | 4 10 2 1 5 24 26 5 1 5 5 6 11 9 1 2 11 6 1 11 2 4 6 4 2 1 16 3 . Fast Attach 85 | 6 2 1 . 1 9 10 1 . 3 2 . 4 3 1 . 1 3 . 5 1 2 5 6 1 11 . 7 . Attach 109 | . 1 4 . . 4 5 2 7 2 3 5 1 4 4 1 3 2 1 5 5 3 3 15 9 5 4 8 3 Detach 44 | . . . . . . 2 2 2 3 . . . 1 2 1 1 2 . 4 4 . . 6 2 7 1 3 1 Swap 128 | . 6 . . 3 8 15 7 7 . 20 5 15 2 3 3 5 . 2 10 7 4 2 . 3 1 . . . Drop 196 | . 2 1 . 5 31 31 1 . 4 5 3 14 11 1 1 9 11 1 15 4 2 13 3 2 6 20 . . Fire 508 | . 38 14 . 12 30 21 16 27 . 29 16 54 23 7 15 29 . 32 28 18 7 36 44 11 1 . . . Melee 240 | . 2 . . . 1 39 . 7 . 9 23 23 . 1 . 9 . 8 27 7 3 2 13 21 1 25 19 . Ram 23 | . . . . . . . . . . . . . . . . . . . . . . . . . . 23 . . Kick . | . . . . . . . . . . . . . . . . . . . . . . . . . . . . . Crush 6 | . . . . . 4 . . . . . . . . . . . . . . . . . . . 2 . . . Escape Stasis 14 | . . . . . . . . . . . . 9 . . . . . . . . . . . . . . 5 . Rewire 17 | . . . . . . . . . . . . 17 . . . . . . . . . . . . . . . . Trap . | . . . . . . . . . . . . . . . . . . . . . . . . . . . . . Miscellaneous . | . . . . . . . . . . . . . . . . . . . . . . . . . . . . . Route ------- -11/Scrapyard -10/Materials -10/Mines -10/Exiles -9/Mines -8/Materials (discovered 2 exits: *Fac x2) -7/Factory (discovered 3 exits: *Fac x2 / *Low) -7/Lower Caves -7/Lower Caves -7/Zion -6/Proximity Caves -6/Factory (discovered 3 exits: *Fac / *Ext x2) -6/Extension (discovered 2 exits: *Fac / *Cet) -6/Cetus (discovered 2 exits: *Fac / [*Arc]) -5/Factory (discovered 2 exits: *Upp x2) -5/Upper Caves -5/Upper Caves (discovered 2 exits: *Fac / *Zhi) -5/Zhirov -4/Proximity Caves -4/Factory -4/Upper Caves -4/Upper Caves (discovered 2 exits: *Res / *War) -4/Warlord -3/Proximity Caves -3/Research -3/Armory -3/Lab -2/Research -2/Garrison History --------- Turn | Location | Event 16 | -11/Scrapyard | Discovered new exit (range 14) 77 | -11/Scrapyard | Entered Materials 164 | -10/Materials | Identified exit to Mines 301 | -10/Materials | Build established: Mutant 572 | -10/Materials | Entered Mines 624 | -10/Mines | Met a Derelict testing a Signal Generator 658 | -10/Mines | Core integrity fell below 50% 762 | -10/Mines | Received a Mining Laser from a helpful Derelict 802 | -10/Mines | Deemed a non-threat by the Exiles lab entrance 803 | -10/Mines | Discovered new exit (range 5) 809 | -10/Mines | Identified exit to Exiles 810 | -10/Mines | Entered Exiles 810 | -10/Exiles | Accompanied by 1 ally 836 | -10/Exiles | Met 8R-AWN 853 | -10/Exiles | Met EX-HEX 892 | -10/Exiles | Met EX-DEC 928 | -10/Exiles | Visited The Gauntlet 1106 | -10/Exiles | Discovered new exit (range 14) 1116 | -10/Exiles | Identified exit to Mines 1184 | -10/Exiles | Met EX-BIN 1366 | -10/Exiles | Learned location of Zion (-7) 1418 | -10/Exiles | Entered Mines 1506 | -9/Mines | Received a Rocket Launcher from a helpful Derelict 1574 | -9/Mines | Assembled infested the area 1578 | -9/Mines | Learned location of 1 exit from Materials 1637 | -9/Mines | Met a Derelict who couldn't figure out how to use a Trap Extractor 1668 | -9/Mines | Discovered new exit (range 10) 1682 | -9/Mines | Identified exit to Materials 1685 | -9/Mines | Entered Materials 1685 | -8/Materials | Evolved 4 slots: Propulsion x2, Utility x2 1686 | -8/Materials | Identified exit to Factory 2002 | -8/Materials | Discovered exit to Factory (range 10) 2516 | -8/Materials | Entered Factory 2516 | -7/Factory | Evolved 2 slots: Utility x2 3234 | -7/Factory | Discovered new exit (range 9) 3240 | -7/Factory | Build established: Assassin 3242 | -7/Factory | Identified exit to Factory 3604 | -7/Factory | Discovered new exit (range 9) 3626 | -7/Factory | Identified exit to Lower Caves 3885 | -7/Factory | Fabricated Cargo Storage Unit? 3931 | -7/Factory | Discovered exit to Factory (range 15) 4163 | -7/Factory | Entered Lower Caves 4198 | -7/Lower Caves | Found DCF Scrap (13 items) 4451 | -7/Lower Caves | Build established: Hauler-Mutant 5297 | -7/Lower Caves | Discovered new exit (range 15) 5317 | -7/Lower Caves | Identified exit to Lower Caves 5330 | -7/Lower Caves | Entered another Lower Caves area 5393 | -7/Lower Caves | Attracted the attention of an 0b10 outpost 5438 | -7/Lower Caves | Destroyed 7 combat bots 5459 | -7/Lower Caves | Lost 3 parts (1p1u1w) 5704 | -7/Lower Caves | Encountered a Warlord checkpoint 5723 | -7/Lower Caves | Learned Factory stockpile data 5863 | -7/Lower Caves | Discovered new exit (range 7) 5869 | -7/Lower Caves | Identified exit to Zion 5871 | -7/Lower Caves | Entered Zion 5967 | -7/Zion | Discovered new exit (range 13) 5968 | -7/Zion | Gained Derelict followers 6006 | -7/Zion | System corruption cleaned by Quarantine Array 6124 | -7/Zion | Learned Factory interactive machine intel 6535 | -7/Zion | Found Prototype Processor 6535 | -7/Zion | Identified Exp. Terrain Scan Processor 6543 | -7/Zion | Found Prototype Processor 6543 | -7/Zion | Identified Exp. Signal Interpreter 6547 | -7/Zion | Found Prototype Hackware 6547 | -7/Zion | Identified Exp. Hacking Suite 6549 | -7/Zion | Found Prototype Processor 6798 | -7/Zion | Met Imprinter 6820 | -7/Zion | Imprinted 6822 | -7/Zion | Declared Zion's savior 6951 | -7/Zion | Given the Hacking Drone Bay 7233 | -7/Zion | Learned location of Quarantine (-3) 7721 | -7/Zion | Identified exit to Proximity Caves 7735 | -7/Zion | Entered Proximity Caves 7735 | -6/Proximity Caves | Accompanied by 6 allies 7751 | -6/Proximity Caves | Learned location of 1 exit from Factory 8263 | -6/Proximity Caves | Spotted B-75 Beast 8288 | -6/Proximity Caves | Allies destroyed B-75 Beast 8393 | -6/Proximity Caves | Core integrity fell below 50% 8942 | -6/Proximity Caves | Discovered exit to Factory (range 14) 8979 | -6/Proximity Caves | Entered Factory 8979 | -6/Factory | Accompanied by 6 allies 8979 | -6/Factory | Evolved 2 slots: Utility x2 8980 | -6/Factory | Identified exit to Extension 8982 | -6/Factory | Loaded intel: 56 interactive machine locations 9003 | -6/Factory | Found Hvy. Insulated Plating 9279 | -6/Factory | Lost 3 allies 9283 | -6/Factory | Build established: Hauler-Assassin 9302 | -6/Factory | Zion Fire squad teleported in 9373 | -6/Factory | Zion Recon squad teleported in 9395 | -6/Factory | Discovered exit to Extension (range 15) 9483 | -6/Factory | Lost 4 allies 9602 | -6/Factory | Discovered new exit (range 15) 9656 | -6/Factory | Fabricated M-13 Machinist (x1) 9733 | -6/Factory | Lost 3 allies 9735 | -6/Factory | Entered Extension 9842 | -6/Extension | Zion Light squad teleported in 9857 | -6/Extension | Zion Fire squad teleported in 9876 | -6/Extension | Rescued A7 9885 | -6/Extension | Rescued a captive Derelict 9920 | -6/Extension | Rescued a captive Derelict 9921 | -6/Extension | Rescued a captive Derelict 9973 | -6/Extension | Rescued a captive Derelict 9983 | -6/Extension | Rescued a captive Derelict 10000 | -6/Extension | Rescued a captive Derelict 10153 | -6/Extension | Spotted B-75 Beast 10177 | -6/Extension | Spotted B-75 Beast 10187 | -6/Extension | Crushed by falling debris 10188 | -6/Extension | Allies destroyed B-75 Beast 10192 | -6/Extension | Destroyed B-75 Beast 10208 | -6/Extension | Found Prototype Protection 10208 | -6/Extension | Identified Zio. Weapon Casing 10223 | -6/Extension | Lost 8 allies 10371 | -6/Extension | Build established: Hauler-Mutant 10456 | -6/Extension | Rescued a captive Derelict 10457 | -6/Extension | Rescued a captive Derelict 10555 | -6/Extension | Rescued a captive Derelict 10556 | -6/Extension | Rescued a captive Derelict 10584 | -6/Extension | Discovered new exit (range 10) 10585 | -6/Extension | Discovered new exit (range 6) 10613 | -6/Extension | Identified exit to Cetus 10641 | -6/Extension | Identified exit to Factory 10664 | -6/Extension | Entered Cetus 10664 | -6/Cetus | Accompanied by 21 allies (A7) 10669 | -6/Cetus | Acquired a Cetus Manufacturing Module code from A7 10680 | -6/Cetus | Build established: Commander-Mutant 10680 | -6/Cetus | Spotted Cetus Guard 10680 | -6/Cetus | Spotted Cetus Guard 10687 | -6/Cetus | Spotted Cetus Guard 10690 | -6/Cetus | Spotted Cetus Guard 10698 | -6/Cetus | Destroyed Cetus Guard 10700 | -6/Cetus | Destroyed Cetus Guard 10704 | -6/Cetus | Allies destroyed Cetus Guard 10712 | -6/Cetus | Allies destroyed Cetus Guard 10731 | -6/Cetus | Lost 3 allies 10739 | -6/Cetus | Lost 3 parts (1p1u1w) 10812 | -6/Cetus | Started Cetus Manufacturing Module 10837 | -6/Cetus | Manufactured an Enhanced Grunt 10862 | -6/Cetus | Manufactured an Enhanced Grunt 10887 | -6/Cetus | Manufactured an Enhanced Grunt 10912 | -6/Cetus | Manufactured an Enhanced Grunt 10937 | -6/Cetus | Manufactured an Enhanced Grunt 10967 | -6/Cetus | Discovered new exit (range 15) 11019 | -6/Cetus | Spotted Cetus Guard 11019 | -6/Cetus | Spotted Cetus Guard 11024 | -6/Cetus | Spotted Cetus Guard 11028 | -6/Cetus | Allies destroyed Cetus Guard 11028 | -6/Cetus | Allies destroyed Cetus Guard 11028 | -6/Cetus | Spotted Cetus Guard 11042 | -6/Cetus | Allies destroyed Cetus Guard 11047 | -6/Cetus | Allies destroyed Cetus Guard 11058 | -6/Cetus | Discovered exit to Factory (range 15) 11073 | -6/Cetus | Scared off Revision 17 11077 | -6/Cetus | Lost 3 allies 11093 | -6/Cetus | System corruption reached 10% 11176 | -6/Cetus | Entered Factory 11176 | -5/Factory | Accompanied by 20 allies (A7) 11176 | -5/Factory | Evolved 2 slots: Utility x2 11205 | -5/Factory | Central database locked down 11310 | -5/Factory | Discovered new exit (range 11) 11330 | -5/Factory | Retrieved Zion intel report: Branch Access 11330 | -5/Factory | Identified exit to Upper Caves 11331 | -5/Factory | Zion Demo squad teleported in 11388 | -5/Factory | Fabricated M-13 Machinist? 11503 | -5/Factory | Entered Upper Caves 11503 | -5/Upper Caves | Accompanied by 22 allies 11554 | -5/Upper Caves | Encountered a Warlord checkpoint 11609 | -5/Upper Caves | Build established: Commander-Assassin 12114 | -5/Upper Caves | Attracted the attention of an 0b10 checkpoint 12209 | -5/Upper Caves | Spotted B-75 Beast 12217 | -5/Upper Caves | Allies destroyed B-75 Beast 12444 | -5/Upper Caves | Discovered new exit (range 16) 12507 | -5/Upper Caves | Identified exit to Upper Caves 12560 | -5/Upper Caves | Entered another Upper Caves area 12560 | -5/Upper Caves | Accompanied by 21 allies 13001 | -5/Upper Caves | Attracted the attention of an 0b10 checkpoint 13297 | -5/Upper Caves | Attracted the attention of an 0b10 base 13344 | -5/Upper Caves | Lost 5 allies 13509 | -5/Upper Caves | Learned Extension stockpile data 13619 | -5/Upper Caves | Build established: Commander-Mutant 13941 | -5/Upper Caves | Discovered new exit (range 15) 13970 | -5/Upper Caves | Identified exit to Factory 14466 | -5/Upper Caves | Spotted B-75 Beast 14478 | -5/Upper Caves | Destroyed B-75 Beast 14516 | -5/Upper Caves | Lost 5 allies 14581 | -5/Upper Caves | Discovered new exit (range 8) 14587 | -5/Upper Caves | Identified exit to Zhirov 14620 | -5/Upper Caves | Entered Zhirov 14620 | -5/Zhirov | Accompanied by 9 allies 14620 | -5/Zhirov | Discovered new exit (range 3) 14778 | -5/Zhirov | Found Alien Artifact 14799 | -5/Zhirov | Found Alien Artifact 14855 | -5/Zhirov | Learned location of Testing (-2) 14855 | -5/Zhirov | Learned location of Command (-1) 14912 | -5/Zhirov | Identified exit to Proximity Caves 14940 | -5/Zhirov | Entered Proximity Caves 14940 | -4/Proximity Caves | Accompanied by 9 allies 14973 | -4/Proximity Caves | Attracted the attention of an 0b10 checkpoint 15225 | -4/Proximity Caves | Attracted the attention of an 0b10 outpost 15470 | -4/Proximity Caves | Learned location of 1 exit from Research 15725 | -4/Proximity Caves | Discovered exit to Factory (range 9) 15762 | -4/Proximity Caves | Entered Factory 15762 | -4/Factory | Accompanied by 8 allies 15762 | -4/Factory | Evolved 2 slots: Propulsion x2 15763 | -4/Factory | Identified exit to Upper Caves 16021 | -4/Factory | Lost 3 allies 16155 | -4/Factory | Fabricated M-13 Machinist? 16262 | -4/Factory | First assault squad dispatched 16295 | -4/Factory | Entered Upper Caves 16295 | -4/Upper Caves | Accompanied by 1 ally 16319 | -4/Upper Caves | Attracted the attention of an 0b10 checkpoint 16529 | -4/Upper Caves | Build established: Hacker-Mutant 16552 | -4/Upper Caves | Attracted the attention of an 0b10 outpost 16891 | -4/Upper Caves | Learned Research terminal intel 17313 | -4/Upper Caves | Discovered new exit (range 10) 17343 | -4/Upper Caves | Identified exit to Upper Caves 17344 | -4/Upper Caves | Entered another Upper Caves area 17344 | -4/Upper Caves | Accompanied by 2 allies 17377 | -4/Upper Caves | Discovered new exit (range 14) 17409 | -4/Upper Caves | Identified exit to Research 17538 | -4/Upper Caves | Spotted B-86 Titan 17552 | -4/Upper Caves | Allies destroyed B-86 Titan 18163 | -4/Upper Caves | Discovered new exit (range 15) 18195 | -4/Upper Caves | Found DCF Scrap (15 items) 18215 | -4/Upper Caves | Identified exit to Warlord 18242 | -4/Upper Caves | Entered Warlord 18242 | -4/Warlord | Accompanied by 1 ally 18294 | -4/Warlord | Discovered new exit (range 12) 18330 | -4/Warlord | System corruption cleaned by Quarantine Array 18450 | -4/Warlord | Opened side exit 18747 | -4/Warlord | Rebuked by Warlord 18772 | -4/Warlord | Warlord's base attacked by MAIN.C 19005 | -4/Warlord | Found Prototype Special Weapon 19005 | -4/Warlord | Identified RU-N14's Throwing Claymores v3 19122 | -4/Warlord | Warlord forces counterattacked 19153 | -4/Warlord | Found Prototype Piercing Weapon 19153 | -4/Warlord | Identified Vortex Lance 19159 | -4/Warlord | Found Prototype Energy Gun 19159 | -4/Warlord | Identified Vortex Rail 19162 | -4/Warlord | Found Vortex Rail 19171 | -4/Warlord | Found Vortex Lance 19370 | -4/Warlord | Lost 4 allies 19447 | -4/Warlord | Warlord base infiltrated, sounded retreat 19448 | -4/Warlord | Enhanced Grunt warped into view 19448 | -4/Warlord | Enhanced Grunt warped into view 19448 | -4/Warlord | Enhanced Grunt warped into view 19448 | -4/Warlord | Enhanced Demolisher warped into view 19448 | -4/Warlord | Enhanced Demolisher warped into view 19448 | -4/Warlord | Enhanced Demolisher warped into view 19509 | -4/Warlord | Spotted B-90 Cyclops 19511 | -4/Warlord | Found Prototype Ballistic Cannon 19533 | -4/Warlord | Spotted Executioner 19586 | -4/Warlord | Lost 16 allies 19593 | -4/Warlord | Spotted Executioner 19604 | -4/Warlord | Spotted Striker 19605 | -4/Warlord | Destroyed Executioner 19611 | -4/Warlord | Spotted Executioner 19626 | -4/Warlord | Destroyed 25 combat bots 19642 | -4/Warlord | Lost 3 allies 19644 | -4/Warlord | Lost 3 parts (2u1w) 19647 | -4/Warlord | Identified exit to Proximity Caves 19648 | -4/Warlord | Entered Proximity Caves 19741 | -3/Proximity Caves | Attracted the attention of an 0b10 outpost 19779 | -3/Proximity Caves | System corruption reached 10% 19790 | -3/Proximity Caves | Identified Hvy. Autocannon 19800 | -3/Proximity Caves | Spotter reported a threat 19809 | -3/Proximity Caves | Lost 4 parts (1n3u) 19816 | -3/Proximity Caves | Destroyed 9 combat bots 19843 | -3/Proximity Caves | Spotter reported a threat 20113 | -3/Proximity Caves | Discovered exit to Research (range 68) 20286 | -3/Proximity Caves | Core integrity fell below 50% 20481 | -3/Proximity Caves | Spotted B-86 Titan 20514 | -3/Proximity Caves | Destroyed B-86 Titan 20538 | -3/Proximity Caves | Lost 3 parts (1n2u) 20690 | -3/Proximity Caves | Entered Research 20690 | -3/Research | Evolved 2 slots: Power x1, Utility x1 20691 | -3/Research | Identified exit to Armory 20692 | -3/Research | Loaded intel: 23 terminal locations 20748 | -3/Research | Fabricated Cargo Storage Unit? 20875 | -3/Research | Garrison activated, responded to threat 21156 | -3/Research | Entered Armory 21157 | -3/Armory | Met VL-GR5, who suggested a friendly competition 21257 | -3/Armory | Found Prototype Processor 21257 | -3/Armory | Identified Exp. Targeting Computer 21262 | -3/Armory | Found Exp. Targeting Computer 21267 | -3/Armory | Found Exp. Targeting Computer 21272 | -3/Armory | Found Exp. Targeting Computer 21278 | -3/Armory | Found Exp. Targeting Computer 21282 | -3/Armory | Found Exp. Targeting Computer 21408 | -3/Armory | Found Fusion Bomb Launcher 21427 | -3/Armory | Zion Infowar Resupply teleported in 21433 | -3/Armory | Found Prototype Processor 21433 | -3/Armory | Identified Spectral Analyzer 21489 | -3/Armory | Identified Integrated Dissipator 21489 | -3/Armory | Installed Integrated Dissipator, increased core heat dissipation (+20) 21505 | -3/Armory | Identified Transdimensional Reconstructor 21505 | -3/Armory | Warped through subspace to slip node 21505 | -3/Armory | Discovered new exit (range 1) 21505 | -3/Armory | Identified exit to Lab 21536 | -3/Armory | Lost 3 parts (1p1n1w) 21545 | -3/Armory | Build established: Hauler-Mutant 21632 | -3/Armory | Entered Lab 21633 | -3/Lab | Discovered new exit (range 9) 21652 | -3/Lab | Identified exit to Research 21705 | -3/Lab | Unable to decrypt terminal 21705 | -3/Lab | Opened the door to a hidden lab 21706 | -3/Lab | Gained access to the hidden lab's interior 21714 | -3/Lab | Detected by scanners 21723 | -3/Lab | Confronted by A5 21771 | -3/Lab | Core integrity fell below 50% 21771 | -3/Lab | System corruption reached 10% 21786 | -3/Lab | Destroyed A5 21799 | -3/Lab | Unable to decrypt terminal 21801 | -3/Lab | Found Prototype Protection 21807 | -3/Lab | Lost 4 parts (1p1n1u1w) 21826 | -3/Lab | Found Transdimensional Reconstructor 21842 | -3/Lab | Found Integrated Dissipator 21854 | -3/Lab | Found Alien Artifact 21925 | -3/Lab | Unable to decrypt terminal 21961 | -3/Lab | Unable to decrypt terminal 22021 | -3/Lab | System corruption reached 30% 22056 | -3/Lab | Lost 3 parts (3u) 22062 | -3/Lab | Build established: Mutant 22107 | -3/Lab | Core integrity fell below 20% 22196 | -3/Lab | Found Prototype Hackware 22200 | -3/Lab | Found Prototype Energy Cannon 22260 | -3/Lab | Entered Research 22260 | -2/Research | Evolved 2 slots: Utility x2 22349 | -2/Research | Zion Kinetic Resupply teleported in 22433 | -2/Research | Intercept squad dispatched 22433 | -2/Research | Installed Integrated Dissipator, increased core heat dissipation (+20) 22456 | -2/Research | Spotted Tracker 22457 | -2/Research | Spotted Tracker 22461 | -2/Research | Core integrity fell below 50% 22470 | -2/Research | Warped through subspace 22471 | -2/Research | Core integrity fell below 20% 22476 | -2/Research | Identified Deep Network Scanner 22477 | -2/Research | Identified Med. Regenerative Plating 22614 | -2/Research | Identified exit to Garrison 22614 | -2/Research | Entered Garrison 22684 | -2/Garrison | Triggered checkpoint 22692 | -2/Garrison | Spotted B-90 Cyclops 22693 | -2/Garrison | Triggered checkpoint 22694 | -2/Garrison | Destroyed by G-73 Enforcer with Phase Gun Last Messages --------------- 22607_ Stasis field depleted. 22612_ System corrupted: Matter fused (-7). 22614_ Connecting with Garrison Access... >>Unlock Access door unlocked. 22614_ EXIT=UNLOCKED: GARRISON [Achievement: Streaker] LOCATION=GARRISON GOAL=ESCAPE 22649_ System corrupted: IFF burst signal emitted. 22665_ Hpw. Tractor Beam destroyed. 22668_ Penetrated by Slug. 22668_ Mic. Antimatter Reactor destroyed. 22668_ Slug penetrates Wall. 22669_ S=1JR|U1GFQS 9Q<9UX 22693_ Garrison Door breached. 22693_ Beams of light sweep through the air. An alarm sounds. [Achievement: 30k Club] Map ----- +----------------------------------------------------+ | ?????????????????????????????????????????????????? | | ?????????????????????????????????????????????????? | | ?????????????????????????????????????????????????? | | ?????????????????????????????????????????????????? | | ?????????????????????????????????????????????????? | | ?????????????????????????????????????????????????? | | ?????????????????????????????????????????????????? | | ?????????????????????????????????????????????????? | | ?????????????????????????????????????????????????? | | ?????????????????????????????????????????????????? | | ?????????????????????????????????????????????????? | | ?????????????????????????????????????????????????? | | ?????????????????????????????????????????????????? | | ?????????????????????????????????????????????????? | | ?????????????????????????????????????????????????? | | ?????????????????????????????????????????????????? | | ?????????????????????????????????????????????????? | | ????????????????????????######"??"## ???????????? | | ???????????????????????? ??? ??????????? | | ???????????????????????? ?? ???????????? | | ???????????????????????? ?? ?????????????? | | ????????????????????????# #? #??? ??????????? | | ??????????????????????### ## ## #?????????? | | ??????????????????????#g "?????????? | | ??????????????????????# BB "?????????? | | ??????????????????????# @ BB "?????????? | | ??????????????????????#g "?????????? | | ??????????????????????### ## ## #?????????? | | ??????????############### ## #??????????????? | | ??????????# ?????????? | | ??????????# ?????????? | | ??????????# #?????????? | | ??????????# #### ###########""""######?????????? | | ??????????# #?# #?????????????????????????????? | | ??????????# #?# #?????????????????????????????? | | ??????????# ##?# #?????????????????????????????? | | ??????????# #??# #?????????????????????????????? | | ???######## #### #?????????????????????????????? | | ???# #?????????????????????????????? | | ???# ###### ######?????????????????????????????? | | ???# #????# #??????????????????????????????????? | | ???# "????# #??????????????????????????????????? | | ???# "????# #??????????????????????????????????? | | ???# "????# #??????????????????????????????????? | | ???# #????# #??????????????????????????????????? | | ???# #????# #??????????????????????????????????? | | #### #????# #??????????????????????????????????? | | """" #????# #??????????????????????????????????? | | #????# #??????????????????????????????????? | | #????# #??????????????????????????????????? | +----------------------------------------------------+ Best States ------------- Heat Dissipation 89 Energy Generation 49 Energy Capacity 565 Matter Stores 300 Matter Capacity 300 Sight Range 24 Robot Scan Range 16 Terrain Scan Range 24 Terrain Scan Density 1010 Power Amplification 30 Armor Coverage 825 Resistance: TH 10 Resistance: EM 30 Evasion (%) 72 Targeting Accuracy 72 Melee Accuracy 8 Recoil Reduction 6 Matter Filtering 50 Offensive Hacking 28 Defensive Hacking 28 Item Schematics ----------------- Cargo Storage Unit | -10/Materials | Hacked Arc Projector | -7/Zion | Archive Angular Momentum Engine | -7/Zion | Archive Imp. Trap Extractor | -7/Zion | Archive Fusion Compressor | -7/Zion | Archive Xenon Bombardment Thruster | -7/Zion | Archive Imp. Coolant Injector | -7/Zion | Archive Adv. Melee Analysis Suite | -7/Zion | Archive Arm. Huge Wheel | -7/Zion | Archive Stasis Canceller | -7/Zion | Archive Shock Absorption System | -7/Zion | Archive Arm. Medium Treads | -7/Zion | Archive Med. Treads | -7/Zion | Archive Focal Shield | -7/Zion | Archive Lgt. Fission Core | -7/Zion | Archive Flak Gun | -7/Zion | Archive Assault Drone Bay | -5/Zhirov | Free Exp. Heat Sink | -5/Zhirov | Free Exp. Optical Array | -5/Zhirov | Free Imp. Arc Thrower | -5/Zhirov | Free Robot Schematics ------------------ M-13 Machinist | -10/Materials | Hacked L-41 Fighter | -7/Zion | Archive G-47 Trooper | -7/Zion | Archive K-01 Serf | -7/Zion | Archive Fabricated ------------ Cargo Storage Unit | x1 | -7/Factory M-13 Machinist | x1 | -6/Factory M-13 Machinist | x1 | -5/Factory M-13 Machinist | x1 | -4/Factory Cargo Storage Unit | x1 | -3/Research Repaired ---------- Nothing Studied --------- Arm. Huge Wheel | -5/Factory | Hacked Centrium Wheel | -4/Factory | Hacked Alien Tech Used ----------------- Integrated Dissipator Transdimensional Reconstructor Achievements -------------- 30k Club Anyone Home? Charge!!! Coming In Hot Into The Breach Killing Spree Ooh, Shiny! Perfect Aim Plot Armor Streaker Challenges ------------ None Game ------ Seed FortressReactiveWarhead Manual? 0 Play Time 03:37:25 Cumulative 108.0 hours Start 2026.02.24 @ 00:06:52 End 2026.02.24 @ 06:47:00 Sessions 1 Manual Loads 0 Difficulty Rogue Special Mode None Game No. 162 Rogue 162 Adventurer 0 Explorer 0 Win Type - Total 0 Types 0/0/0/0/0/0/0/0/0/0 Lore% 31 Gallery% 42 Achievement% 35 Wizard Run 0 Options --------- Layout 1 ASCII 0 Keyboard 0 Movement Mouse Keybinds 0 Fullscreen 2 Font 24/Smallcaps Map View 50x35 Zoom Use 19% Tactical HUD 1 Map Filters NONE Filters NONE Steam 1 RUN: cff1dedc-9f96-4d38-9064-54ba881d23a5